bitfinex-derivatives/quotes_BNBF0:USTF0_20251002
["timestamp","ask_amount","ask_price","bid_price","bid_amount"]
[1759436189088,0.52565207,1075.1,1074.9,0.16185708]
[1759436189388,0.83058374,1075.6,1074.9,0.16185708]
[1759436189590,0.52568242,1075.5,1074.9,0.16185708]
[1759436189790,0.52568242,1075.4,1074.9,0.16185708]
[1759436190089,0.52568242,1075.3,1074.9,0.16185708]
[1759436190287,0.52568242,1075.2,1074.9,0.16185708]
[1759436190492,0.52568242,1075.1,1074.9,0.16185708]
[1759436190693,0.83058374,1075.6,1074.9,0.16185708]
[1759436190888,0.52572231,1075.5,1074.9,0.16185708]
[1759436191094,0.52572231,1075.4,1074.9,0.16185708]
[1759436191294,0.52572231,1075.3,1074.9,0.16185708]
[1759436191489,0.52572231,1075.2,1074.9,0.16185708]
[1759436191795,0.52572231,1075.1,1074.9,0.16185708]
[1759436192095,0.83058374,1075.7,1074.9,0.16185708]
[1759436192390,0.52580241,1075.6,1074.9,0.16185708]
[1759436192596,0.52580241,1075.5,1074.9,0.16185708]
[1759436192795,0.52580241,1075.4,1074.9,0.16185708]
[1759436192995,0.52580241,1075.3,1074.9,0.16185708]
[1759436193193,0.52580241,1075.2,1074.9,0.16185708]
[1759436193395,0.52580241,1075.1,1074.9,0.16185708]
[1759436193698,0.83058374,1075.7,1074.9,0.16185708]
[1759436193894,0.52583613,1075.6,1074.9,0.16185708]
[1759436194194,0.52583613,1075.5,1074.9,0.16185708]
[1759436194498,0.52583613,1075.4,1074.9,0.16185708]
[1759436194696,0.52583613,1075.3,1074.9,0.16185708]
[1759436194902,0.52583613,1075.2,1074.9,0.16185708]
[1759436195098,0.52583613,1075.1,1074.9,0.16185708]
[1759436195297,0.83058374,1075.7,1074.9,0.16185708]
[1759436195497,0.52592805,1075.6,1074.9,0.16185708]
[1759436195798,0.52592805,1075.5,1074.9,0.16185708]
[1759436195998,0.52592805,1075.4,1074.9,0.16185708]
[1759436196198,0.52592805,1075.3,1074.9,0.16185708]
[1759436196397,0.52592805,1075.2,1074.9,0.16185708]
[1759436196599,0.52592805,1075.1,1074.9,0.16185708]
[1759436196798,0.83058374,1075.7,1074.9,0.16185708]
[1759436197101,0.52598884,1075.6,1074.9,0.16185708]
[1759436197302,0.52598884,1075.5,1074.9,0.16185708]
[1759436197503,0.52598884,1075.4,1074.9,0.16185708]
[1759436197804,0.52598884,1075.3,1074.9,0.16185708]
[1759436198099,0.52598884,1075.2,1074.9,0.16185708]
[1759436198298,0.52598884,1075.1,1074.9,0.16185708]
[1759436198502,0.83058374,1075.7,1074.9,0.16185708]
[1759436198700,0.52601544,1075.6,1074.9,0.16185708]
[1759436198903,0.52601544,1075.5,1074.9,0.16185708]
[1759436199198,0.52601544,1075.4,1074.9,0.16185708]
[1759436199406,0.52601544,1075.3,1074.9,0.16185708]
[1759436199598,0.52601544,1075.2,1074.9,0.16185708]
[1759436199903,0.83058374,1076.0,1074.9,0.16185708]
[1759436200102,0.52588683,1075.9,1074.9,0.16185708]
[1759436200298,0.52588683,1075.8,1074.9,0.16185708]
[1759436200500,0.52588683,1075.7,1074.9,0.16185708]
[1759436200703,0.83058374,1075.9,1074.9,0.16185708]
[1759436200704,0.52588683,1075.6,1074.9,0.16185708]
[1759436200903,0.52588683,1075.5,1074.9,0.16185708]
[1759436201104,0.52588683,1075.4,1074.9,0.16185708]
[1759436201302,0.52588683,1075.3,1074.9,0.16185708]
[1759436201507,0.83058374,1076.0,1074.9,0.16185708]
[1759436201705,0.52583709,1075.9,1074.9,0.16185708]
[1759436201903,0.52583709,1075.8,1074.9,0.16185708]
[1759436202203,0.52583709,1075.7,1074.9,0.16185708]
[1759436202406,0.52583709,1075.6,1074.9,0.16185708]
[1759436202604,0.52583709,1075.5,1074.9,0.16185708]
[1759436202807,0.52583709,1075.4,1074.9,0.16185708]
[1759436203107,0.52583709,1075.3,1074.9,0.16185708]
[1759436203403,0.83058374,1076.0,1074.9,0.16185708]
[1759436203705,0.52579171,1075.9,1074.9,0.16185708]
[1759436203904,0.83058374,1076.0,1074.9,0.16185708]
[1759436203905,0.52579171,1075.8,1074.9,0.16185708]
[1759436204204,0.52579171,1075.7,1074.9,0.16185708]
[1759436204407,0.52579171,1075.6,1074.9,0.16185708]
[1759436204605,0.52579171,1075.5,1074.9,0.16185708]
[1759436204808,0.52579171,1075.4,1074.9,0.16185708]
[1759436205105,0.52579171,1075.3,1074.9,0.16185708]
[1759436205308,0.83058374,1076.0,1074.9,0.16185708]
[1759436205504,0.52576172,1075.9,1074.9,0.16185708]
[1759436205706,0.52576172,1075.8,1074.9,0.16185708]
[1759436205903,0.52576172,1075.7,1074.9,0.16185708]
[1759436206107,0.52576172,1075.6,1074.9,0.16185708]
[1759436206408,0.52576172,1075.5,1074.9,0.16185708]
[1759436206605,0.52576172,1075.4,1074.9,0.16185708]
[1759436206804,0.52576172,1075.3,1074.9,0.16185708]
[1759436207004,0.52471321,1075.2,1074.9,0.16185708]
[1759436207203,0.52471321,1075.1,1074.9,0.16185708]
[1759436207406,0.83058374,1075.6,1074.9,0.16185708]
[1759436207604,0.52475313,1075.5,1074.9,0.16185708]
[1759436207808,0.52475313,1075.4,1074.9,0.16185708]
[1759436208006,0.52475313,1075.3,1074.9,0.16185708]
[1759436208208,0.52475313,1075.2,1074.9,0.16185708]
[1759436208405,0.52475313,1075.1,1074.9,0.16185708]
[1759436208608,0.83058374,1075.6,1074.9,0.16185708]
[1759436208807,0.52475536,1075.5,1074.9,0.16185708]
[1759436209010,0.52475536,1075.4,1074.9,0.16185708]
[1759436209306,0.52475536,1075.3,1074.9,0.16185708]
[1759436209510,0.52475536,1075.2,1074.9,0.16185708]
[1759436209710,0.52475536,1075.1,1074.9,0.16185708]
[1759436209908,0.83058374,1075.6,1074.9,0.16185708]
[1759436210112,0.52474422,1075.5,1074.9,0.16185708]
[1759436210411,0.83058374,1075.6,1074.9,0.16185708]
[1759436210412,0.52474422,1075.4,1074.9,0.16185708]
[1759436210706,0.52474422,1075.3,1074.9,0.16185708]
[1759436210911,0.52474422,1075.2,1073.6,1.22857739]
[1759436211111,0.52474422,1075.1,1074.7,0.16186611]
[1759436211309,0.52474422,1075.0,1074.7,0.16186611]
[1759436211611,0.52478302,1074.9,1073.7,1.22857739]
[1759436211806,0.83058374,1075.4,1074.7,0.16188117]
[1759436212007,0.52478781,1075.3,1073.7,1.22857739]
[1759436212209,0.83058374,1075.4,1073.7,1.22857739]
[1759436212210,0.52478781,1075.2,1074.7,0.16186235]
[1759436212407,0.52478781,1075.1,1074.7,0.16186235]
[1759436212607,0.52478781,1075.0,1073.7,1.22857739]
[1759436212812,0.52478781,1074.9,1074.7,0.16187364]
[1759436213108,0.83058374,1075.4,1073.7,1.22857739]
[1759436213409,0.5246658,1075.3,1074.7,0.16188117]
[1759436213607,0.5246658,1075.2,1073.7,1.22857739]
[1759436213811,0.5246658,1075.1,1074.7,0.16186611]
[1759436214007,1.24587561,1075.6,1074.7,0.16186611]
[1759436214008,0.5246658,1075.0,1074.7,0.16186611]
[1759436214211,0.5246658,1074.9,1073.6,1.22857739]
[1759436214407,0.5246658,1074.8,1074.7,0.16188117]
[1759436214611,0.52462217,1074.8,1073.6,1.22857739]
[1759436214808,0.83058374,1075.3,1073.6,1.22857739]
[1759436215008,0.52462645,1075.2,1074.6,0.16189925]
[1759436215210,0.52462645,1075.1,1074.6,0.16189925]
[1759436215414,0.52462645,1075.0,1073.6,1.22857739]
[1759436215710,0.52462645,1074.9,1074.6,0.16188795]
[1759436215908,0.52462645,1074.8,1073.3,1.22857739]
[1759436216110,0.52462645,1074.7,1074.5,0.16190828]
[1759436216312,0.83058374,1075.3,1074.5,0.16190828]
[1759436216610,0.52438361,1075.2,1074.5,0.16192335]
[1759436216913,0.52438361,1075.1,1074.5,0.16192335]
[1759436217112,0.52438361,1075.0,1074.5,0.16192335]
[1759436217309,0.52438361,1074.9,1074.5,0.16192335]
[1759436217512,0.52438361,1074.8,1074.5,0.16192335]
[1759436217813,0.52438361,1074.7,1074.5,0.16192335]
[1759436218012,0.83058374,1075.4,1074.5,0.16192335]
[1759436218314,0.52422607,1075.3,1074.5,0.16192335]
[1759436218511,0.52422607,1075.2,1074.5,0.16192335]
[1759436218712,0.52422607,1075.1,1074.5,0.16192335]
[1759436218916,0.52422607,1075.0,1074.5,0.16192335]
[1759436219118,0.52422607,1074.9,1074.5,0.16192335]
[1759436219415,0.52422607,1074.8,1073.2,1.22857739]
[1759436219614,0.52422607,1074.7,1073.2,1.22857739]
[1759436219812,0.83058374,1075.5,1073.2,1.22857739]
[1759436220017,0.52394372,1075.4,1073.2,1.22857739]
[1759436220216,0.52394372,1075.3,1073.2,1.22857739]
[1759436220418,0.52394372,1075.2,1073.2,1.22857739]
[1759436220615,0.52394372,1075.1,1073.2,1.22857739]
[1759436220815,1.132,1075.4,1073.2,1.22857739]
[1759436220816,0.52394372,1075.0,1073.2,1.22857739]
[1759436221014,0.52394372,1074.9,1073.1,1.22857739]
[1759436221314,0.52394372,1074.8,1073.1,1.22857739]
[1759436221617,0.52394372,1074.7,1073.1,1.22857739]
[1759436221816,1.96258374,1075.4,1073.1,1.22857739]
[1759436222016,0.5238252,1075.3,1073.1,1.22857739]
[1759436222213,0.5238252,1075.2,1073.1,1.22857739]
[1759436222513,0.5238252,1075.1,1073.1,1.22857739]
[1759436222717,0.5238252,1075.0,1073.1,1.22857739]
[1759436223014,0.5238252,1074.9,1073.1,1.22857739]
[1759436223218,0.5238252,1074.8,1073.1,1.22857739]
[1759436223415,0.5238252,1074.7,1073.1,1.22857739]
[1759436223718,1.96258374,1075.4,1073.4,0.16193465]
[1759436223916,0.52359471,1075.3,1073.4,0.16193465]
[1759436224115,0.52359471,1075.2,1073.4,0.16193465]
[1759436224419,0.52359471,1075.1,1073.4,0.16193465]
[1759436224617,0.52359471,1075.0,1073.4,0.16193465]
[1759436224818,0.52359471,1074.9,1073.4,0.16193465]
[1759436225017,0.52359471,1074.8,1073.4,0.16193465]
[1759436225217,0.52359471,1074.7,1073.4,0.16193465]
[1759436225519,1.96258374,1075.4,1073.4,0.16193465]
[1759436225720,0.52341937,1075.3,1073.4,0.16193465]
[1759436225919,0.52341937,1075.2,1073.4,0.16193465]
[1759436226120,0.52341937,1075.1,1073.4,0.16193465]
[1759436226320,0.52341937,1075.0,1073.4,0.16193465]
[1759436226517,0.52341937,1074.9,1073.4,0.16193465]
[1759436226717,0.52341937,1074.8,1073.5,1.23731866]
[1759436226921,0.52341937,1074.7,1073.5,1.23731866]
[1759436227121,1.96258374,1075.4,1073.5,1.23731866]
[1759436227417,1.35405472,1075.3,1073.5,1.23731866]
[1759436227621,0.52347098,1075.2,1073.5,1.23731866]
[1759436227923,0.52347098,1075.1,1073.5,1.23731866]
[1759436228122,0.52347098,1075.0,1073.5,1.23731866]
[1759436228422,0.52347098,1074.9,1073.5,1.23731866]
[1759436228619,0.52347098,1074.8,1073.5,1.23731866]
[1759436228820,1.132,1075.4,1073.5,1.23731866]
[1759436228821,0.52347098,1074.7,1073.5,1.23731866]
[1759436229019,0.52347098,1074.6,1073.5,1.23731866]
[1759436229222,0.83058374,1075.2,1073.5,1.23731866]
[1759436229419,0.52351972,1075.1,1073.5,1.23731866]
[1759436229622,0.52351972,1075.0,1073.5,1.23731866]
[1759436229820,0.52351972,1074.9,1073.5,1.23731866]
[1759436230021,0.52351972,1074.8,1073.5,1.23731866]
[1759436230222,0.52351972,1074.7,1073.5,1.23731866]
[1759436230422,0.52351972,1074.6,1073.5,1.23731866]
[1759436230624,0.83058374,1075.1,1073.5,1.23731866]
[1759436230821,0.52359224,1075.0,1073.5,1.23731866]
[1759436231024,0.52359224,1074.9,1073.5,1.23731866]
[1759436231222,0.52359224,1074.8,1073.5,1.23731866]
[1759436231421,0.52359224,1074.7,1073.5,1.23731866]
[1759436231625,0.52359224,1074.6,1073.5,1.23731866]
[1759436231826,0.52359224,1074.5,1073.5,1.23731866]
[1759436232024,0.83058374,1075.3,1073.5,1.23731866]
[1759436232224,0.5235614,1075.2,1073.5,1.23731866]
[1759436232422,0.5235614,1075.1,1073.5,1.23731866]
[1759436232624,0.5235614,1075.0,1073.5,1.23731866]
[1759436232827,0.5235614,1074.9,1073.5,1.23731866]
[1759436233027,0.5235614,1074.8,1073.5,1.23731866]
[1759436233222,0.5235614,1074.7,1073.5,1.23731866]
[1759436233427,0.5235614,1074.6,1073.5,1.23731866]
[1759436233627,0.5235614,1074.5,1073.5,1.23731866]
[1759436233822,0.83058374,1075.0,1073.5,1.23731866]
[1759436234022,0.52332258,1074.9,1073.5,1.23731866]
[1759436234324,0.52332258,1074.8,1073.5,1.23731866]
[1759436234529,0.52332258,1074.7,1073.5,1.23731866]
[1759436234724,0.52332258,1074.6,1073.5,1.23731866]
[1759436234928,0.52332258,1074.5,1073.5,1.23731866]
[1759436235227,0.83058374,1075.1,1073.5,1.23731866]
[1759436235424,0.52302428,1075.0,1073.5,1.23731866]
[1759436235624,0.52302428,1074.9,1073.5,1.23731866]
[1759436235829,0.52302428,1074.8,1073.5,1.23731866]
[1759436236027,0.52302428,1074.7,1073.5,1.23731866]
[1759436236326,0.52302428,1074.6,1073.5,1.23731866]
[1759436236530,0.52302428,1074.5,1073.5,1.23731866]
[1759436236728,0.52269973,1074.4,1073.5,1.23731866]
[1759436236928,0.52269973,1074.3,1073.5,1.23731866]
[1759436237227,0.83058374,1075.1,1073.5,1.23731866]
[1759436237532,0.52252937,1075.0,1073.5,1.23731866]
[1759436237728,0.52252937,1074.9,1073.5,1.23731866]
[1759436238028,0.52252937,1074.8,1073.5,1.23731866]
[1759436238232,0.52252937,1074.7,1073.5,1.23731866]
[1759436238432,0.52252937,1074.6,1073.5,1.23731866]
[1759436238729,0.52252937,1074.5,1073.5,1.23731866]
[1759436238928,0.52252937,1074.4,1073.5,1.23731866]
[1759436239132,0.52252937,1074.3,1073.5,1.23731866]
[1759436239429,1.493,1074.6,1073.5,1.23731866]
[1759436239633,0.52225597,1074.5,1073.5,1.23731866]
[1759436239832,0.52225597,1074.4,1073.5,1.23731866]
[1759436240031,1.493,1074.6,1073.5,1.23731866]
[1759436240232,0.52225057,1074.5,1073.5,1.23731866]
[1759436240429,0.52225057,1074.4,1073.5,1.23731866]
[1759436240632,1.493,1074.6,1073.5,1.23731866]
[1759436240830,0.52213426,1074.5,1073.5,1.23731866]
[1759436241132,0.52213426,1074.4,1073.5,1.23731866]
[1759436241434,1.493,1074.6,1073.5,1.23731866]
[1759436241734,0.52203588,1074.5,1073.5,1.23731866]
[1759436241934,0.52203588,1074.4,1073.5,1.23731866]
[1759436242231,1.493,1074.6,1073.5,1.23731866]
[1759436242431,0.52195569,1074.5,1073.5,1.23731866]
[1759436242631,0.52195569,1074.4,1073.5,1.23731866]
[1759436242830,1.493,1074.6,1073.5,1.23731866]
[1759436243134,0.52195536,1074.5,1073.5,1.23731866]
[1759436243328,0.52195536,1074.4,1073.5,1.23731866]
[1759436243533,1.493,1074.6,1073.5,1.23731866]
[1759436243732,0.52188631,1074.5,1073.5,1.23731866]
[1759436243932,0.52188631,1074.4,1073.5,1.23731866]
[1759436244135,1.493,1074.6,1073.5,1.23731866]
[1759436244332,0.52188631,1074.5,1073.5,1.23731866]
[1759436244636,0.52188631,1074.4,1073.5,1.23731866]
[1759436244836,1.493,1074.6,1073.5,1.23731866]
[1759436245035,0.52181681,1074.5,1073.5,1.23731866]
[1759436245232,0.52181681,1074.4,1073.5,1.23731866]
[1759436245536,1.493,1074.6,1073.5,1.23731866]
[1759436250739,1.493,1074.6,1073.4,0.16193465]
[1759436255447,1.394,1074.5,1073.4,0.16193465]
[1759436265259,1.394,1074.5,1073.4,1.39051204]
[1759436265657,1.394,1074.5,1073.4,0.16193465]
[1759436266254,1.394,1074.5,1073.4,1.39051204]
[1759436267663,1.394,1074.5,1073.4,0.16193465]
[1759436277469,1.394,1074.5,1073.4,1.39051204]
[1759436278069,1.394,1074.5,1073.4,0.16193465]
[1759436282165,2.317,1074.5,1073.4,0.16193465]
[1759436286166,2.317,1074.5,1073.7,1.22857739]
[1759436286366,2.317,1074.5,1073.6,1.22857739]
[1759436286568,0.923,1074.5,1073.6,1.22857739]
[1759436289369,0.923,1074.5,1073.7,1.22857739]
[1759436289770,0.923,1074.5,1073.9,1.22857739]
[1759436290168,0.923,1074.5,1073.8,1.22857739]
[1759436294476,0.923,1074.5,1073.9,1.22857739]
[1759436296181,0.923,1074.5,1073.8,1.22857739]
[1759436299077,0.923,1074.5,1073.5,1.22857739]
[1759436299282,0.923,1074.5,1073.4,1.39051204]
[1759436300084,0.923,1074.5,1073.4,0.16193465]
[1759436300779,0.923,1074.5,1073.4,1.39051204]
[1759436301782,0.923,1074.5,1073.5,1.22857739]
[1759436301979,2.328,1074.5,1073.5,1.22857739]
[1759436304185,2.328,1074.5,1073.6,1.22857739]
[1759436306387,2.328,1074.5,1073.7,1.22857739]
[1759436306882,2.328,1074.5,1073.6,1.22857739]
[1759436309288,2.328,1074.5,1073.5,1.22857739]
[1759436310785,2.328,1074.5,1073.5,2.48959126]
[1759436310985,2.328,1074.5,1073.5,2.49359126]
[1759436312591,2.328,1074.5,1073.5,1.26501387]
[1759436313091,2.312,1074.5,1073.7,1.22857739]
[1759436313287,2.296,1074.5,1073.5,2.49359126]
[1759436313486,2.28,1074.5,1073.5,2.49359126]
[1759436313689,2.264,1074.5,1073.6,1.22857739]
[1759436313888,2.248,1074.5,1073.6,1.22857739]
[1759436314091,2.232,1074.5,1073.6,1.22857739]
[1759436314391,2.208,1074.5,1073.6,1.22857739]
[1759436314588,2.192,1074.5,1073.5,2.49359126]
[1759436315892,2.188,1074.5,1073.5,2.49359126]
[1759436316288,0.779,1074.5,1073.5,2.49359126]
[1759436316488,0.775,1074.5,1073.5,2.49359126]
[1759436316890,0.775,1074.5,1073.5,1.26501387]
[1759436317492,0.775,1074.5,1073.8,1.22857739]
[1759436319292,0.775,1074.5,1073.9,1.22857739]
[1759436322292,0.775,1074.5,1073.8,1.22857739]
[1759436322494,0.775,1074.5,1073.5,1.26501387]
[1759436322495,0.775,1074.5,1073.9,1.22857739]
[1759436326593,0.775,1074.5,1074.0,1.22857739]
[1759436331399,0.83058374,1076.1,1074.0,1.22857739]
[1759436331597,0.52231925,1076.0,1074.0,1.22857739]
[1759436331796,0.52231925,1075.9,1074.0,1.22857739]
[1759436332000,0.52231925,1075.8,1074.0,1.22857739]
[1759436332202,0.52231925,1075.7,1074.0,1.22857739]
[1759436332401,0.52231925,1075.6,1074.0,1.22857739]
[1759436332605,0.52231925,1075.5,1074.0,1.22857739]
[1759436332807,0.83058374,1076.1,1074.0,1.22857739]
[1759436333001,0.52230574,1076.0,1074.0,1.22857739]
[1759436333306,0.52230574,1075.9,1073.9,1.22857739]
[1759436333503,0.52230574,1075.8,1073.9,1.22857739]
[1759436333707,0.52230574,1075.7,1073.9,1.22857739]
[1759436333902,0.52230574,1075.6,1073.9,1.22857739]
[1759436334105,0.52230574,1075.5,1073.9,1.22857739]
[1759436334304,0.83058374,1076.2,1073.9,1.22857739]
[1759436334507,0.52230893,1076.1,1073.9,1.22857739]
[1759436334802,0.52230893,1076.0,1073.9,1.22857739]
[1759436335006,0.52230893,1075.9,1073.9,1.22857739]
[1759436335204,0.52230893,1075.8,1073.9,1.22857739]
[1759436335408,0.52230893,1075.7,1073.9,1.22857739]
[1759436335708,0.52230893,1075.6,1073.8,1.22857739]
[1759436335909,0.52230893,1075.5,1073.8,1.22857739]
[1759436336108,0.83058374,1076.2,1073.9,1.22857739]
[1759436336409,0.52231506,1076.1,1073.9,1.22857739]
[1759436336705,0.52231506,1076.0,1073.9,1.22857739]
[1759436336909,0.52231506,1075.9,1073.9,1.22857739]
[1759436337209,0.52231506,1075.8,1073.9,1.22857739]
[1759436337408,0.52231506,1075.7,1073.9,1.22857739]
[1759436337607,0.52231506,1075.6,1073.9,1.22857739]
[1759436337805,0.52231506,1075.5,1073.9,1.22857739]
[1759436338007,0.83058374,1076.2,1073.9,1.22857739]
[1759436338211,0.52238331,1076.1,1073.9,1.22857739]
[1759436338410,0.52238331,1076.0,1073.9,1.22857739]
[1759436338606,0.52238331,1075.9,1073.9,1.22857739]
[1759436338808,0.52238331,1075.8,1073.9,1.22857739]
[1759436339010,0.52238331,1075.7,1073.9,1.22857739]
[1759436339209,0.52238331,1075.6,1073.9,1.22857739]
[1759436339408,0.52238331,1075.5,1073.9,1.22857739]
[1759436339708,0.83058374,1076.2,1073.9,1.22857739]
[1759436339906,0.52250319,1076.1,1073.9,1.22857739]
[1759436340106,0.52250319,1076.0,1073.9,1.22857739]
[1759436340308,0.52250319,1075.9,1073.9,1.22857739]
[1759436340511,0.52250319,1075.8,1074.0,1.22857739]
[1759436340808,0.52250319,1075.7,1074.0,1.22857739]
[1759436341013,0.52250319,1075.6,1074.2,1.22857739]
[1759436341208,0.83058374,1076.1,1074.2,1.22857739]
[1759436341410,0.52240886,1076.0,1074.3,1.22857739]
[1759436341713,0.52240886,1075.9,1074.4,1.22857739]
[1759436342013,0.52240886,1075.8,1074.4,1.22857739]
[1759436342213,0.52240886,1075.7,1074.4,1.22857739]
[1759436342410,0.83058374,1076.3,1074.5,1.22857739]
[1759436342612,0.52233347,1076.2,1074.5,1.22857739]
[1759436342913,0.52233347,1076.1,1074.5,1.22857739]
[1759436343213,0.52233347,1076.0,1074.5,1.22857739]
[1759436343412,0.52233347,1075.9,1074.5,1.22857739]
[1759436343613,0.83058374,1076.4,1074.5,1.22857739]
[1759436343813,0.52219927,1076.3,1074.5,1.22857739]
[1759436344011,0.52219927,1076.2,1074.5,1.22857739]
[1759436344210,0.52219927,1076.1,1074.3,1.22857739]
[1759436344410,0.52219927,1076.0,1074.3,1.22857739]
[1759436344614,0.52219927,1075.9,1074.3,1.22857739]
[1759436344813,0.83058374,1076.6,1074.3,1.22857739]
[1759436345014,0.52210811,1076.5,1074.3,1.22857739]
[1759436345209,0.52210811,1076.4,1074.3,1.22857739]
[1759436345514,0.52210811,1076.3,1074.4,1.22857739]
[1759436345714,0.52210811,1076.2,1074.4,1.22857739]
[1759436346014,0.52210811,1076.1,1074.4,1.22857739]
[1759436346209,0.83058374,1076.9,1074.4,1.22857739]
[1759436346413,0.52160291,1076.8,1074.4,1.22857739]
[1759436346610,0.52160291,1076.7,1074.4,1.22857739]
[1759436346814,0.52160291,1076.6,1074.4,1.22857739]
[1759436347015,0.52160291,1076.5,1074.4,1.22857739]
[1759436347311,0.52160291,1076.4,1074.4,1.22857739]
[1759436347515,0.52160291,1076.3,1074.5,1.22857739]
[1759436347713,0.52160291,1076.2,1074.5,1.22857739]
[1759436348012,0.83058374,1076.9,1074.5,1.22857739]
[1759436348211,0.52134302,1076.8,1074.4,1.22857739]
[1759436348411,0.52134302,1076.7,1074.4,1.22857739]
[1759436348616,0.52134302,1076.6,1074.4,1.22857739]
[1759436348914,0.52134302,1076.5,1074.4,1.22857739]
[1759436349116,0.83058374,1076.9,1074.4,1.22857739]
[1759436349117,0.52134302,1076.4,1074.4,1.22857739]
[1759436349315,0.52134302,1076.3,1074.4,1.22857739]
[1759436349516,0.52134302,1076.2,1074.4,1.22857739]
[1759436349716,0.83058374,1076.9,1074.4,1.22857739]
[1759436349916,0.52088966,1076.8,1074.4,1.22857739]
[1759436350116,0.52088966,1076.7,1074.4,1.22857739]
[1759436350416,0.16170966,1077.5,1074.4,1.22857739]
[1759436350417,0.52088966,1076.6,1074.4,1.22857739]
[1759436350616,0.52088966,1076.5,1074.4,1.22857739]
[1759436350811,0.52088966,1076.4,1074.4,1.22857739]
[1759436351014,0.52088966,1076.3,1074.4,1.22857739]
[1759436351215,0.52088966,1076.2,1074.4,1.22857739]
[1759436351414,0.83058374,1076.8,1074.4,1.22857739]
[1759436351613,0.52047012,1076.7,1074.4,1.22857739]
[1759436351815,0.52047012,1076.6,1074.4,1.22857739]
[1759436352017,0.52047012,1076.5,1074.4,1.22857739]
[1759436352213,0.52047012,1076.4,1074.4,1.22857739]
[1759436352419,0.52047012,1076.3,1074.4,1.22857739]
[1759436352715,0.52047012,1076.2,1074.4,1.22857739]
[1759436353017,0.83058374,1076.8,1074.4,1.22857739]
[1759436353215,0.52027126,1076.7,1074.3,1.22857739]
[1759436353415,0.52027126,1076.6,1074.3,1.22857739]
[1759436353615,0.52027126,1076.5,1074.4,1.22857739]
[1759436353815,0.52027126,1076.4,1074.5,1.22857739]
[1759436354015,0.83058374,1077.0,1074.7,1.22857739]
[1759436354215,0.51996341,1076.9,1074.7,1.22857739]
[1759436354414,0.51996341,1076.8,1074.7,1.22857739]
[1759436354617,0.51996341,1076.7,1074.7,1.22857739]
[1759436354814,0.51996341,1076.6,1074.7,1.22857739]
[1759436355013,0.83058374,1077.1,1074.7,1.22857739]
[1759436355217,0.5196479,1077.0,1074.6,1.22857739]
[1759436355418,0.5196479,1076.9,1074.6,1.22857739]
[1759436355615,0.5196479,1076.8,1074.6,1.22857739]
[1759436355814,0.5196479,1076.7,1074.6,1.22857739]
[1759436356018,0.5196479,1076.6,1074.6,1.22857739]
[1759436356220,0.83058374,1077.1,1074.6,1.22857739]
[1759436356420,0.5190355,1077.0,1074.6,1.22857739]
[1759436356719,0.5190355,1076.9,1074.6,1.22857739]
[1759436356918,0.5190355,1076.8,1074.6,1.22857739]
[1759436357116,0.5190355,1076.7,1074.6,1.22857739]
[1759436357319,0.5190355,1076.6,1074.5,1.22857739]
[1759436357520,0.83058374,1077.1,1074.5,1.22857739]
[1759436357718,0.5178737,1077.0,1074.6,1.22857739]
[1759436357921,0.5178737,1076.9,1074.5,1.22857739]
[1759436358217,0.5178737,1076.8,1074.5,1.22857739]
[1759436358420,0.5178737,1076.7,1074.5,1.22857739]
[1759436358619,0.5178737,1076.6,1074.5,1.22857739]
[1759436358819,0.83058374,1077.2,1074.5,1.22857739]
[1759436359120,0.51761493,1077.1,1074.5,1.22857739]
[1759436359318,0.51761493,1077.0,1074.5,1.22857739]
[1759436359517,0.51761493,1076.9,1074.5,1.22857739]
[1759436359720,0.51761493,1076.8,1074.5,1.22857739]
[1759436360022,0.51761493,1076.7,1074.5,1.22857739]
[1759436360322,0.51761493,1076.6,1074.5,1.22857739]
[1759436360522,0.83058374,1077.2,1074.5,1.22857739]
[1759436360822,0.51722336,1077.1,1074.5,1.22857739]
[1759436361022,0.51722336,1077.0,1074.5,1.22857739]
[1759436361222,0.51722336,1076.9,1074.4,1.22857739]
[1759436361420,0.51722336,1076.8,1074.4,1.22857739]
[1759436361720,0.51722336,1076.7,1074.4,1.22857739]
[1759436362020,0.51722336,1076.6,1074.4,1.22857739]
[1759436362220,0.83058374,1077.3,1074.5,1.22857739]
[1759436362420,0.51692814,1077.2,1074.5,1.22857739]
[1759436362721,0.51692814,1077.1,1074.5,1.22857739]
[1759436362924,0.51692814,1077.0,1074.5,1.22857739]
[1759436363124,0.51692814,1076.9,1074.5,1.22857739]
[1759436363423,0.51692814,1076.8,1074.4,1.22857739]
[1759436363623,0.51692814,1076.7,1074.4,1.22857739]
[1759436363825,0.83058374,1077.3,1074.4,1.22857739]
[1759436364022,0.51679716,1077.2,1074.4,1.22857739]
[1759436364222,0.51679716,1077.1,1074.4,1.22857739]
[1759436364426,0.51679716,1077.0,1074.4,1.22857739]
[1759436364625,0.51679716,1076.9,1074.4,1.22857739]
[1759436364820,0.51679716,1076.8,1074.4,1.22857739]
[1759436365024,0.51679716,1076.7,1074.4,1.22857739]
[1759436365324,0.83058374,1077.4,1074.4,1.22857739]
[1759436365523,0.51655286,1077.3,1074.4,1.22857739]
[1759436365721,0.51655286,1077.2,1074.4,1.22857739]
[1759436365922,0.51655286,1077.1,1074.4,1.22857739]
[1759436366221,0.51655286,1077.0,1074.4,1.22857739]
[1759436366424,0.83058374,1077.4,1074.4,1.22857739]
[1759436366425,0.51655286,1076.9,1074.4,1.22857739]
[1759436366622,0.51655286,1076.8,1074.4,1.22857739]
[1759436366924,0.83058374,1077.4,1074.4,1.22857739]
[1759436367128,0.5164829,1077.3,1074.4,1.22857739]
[1759436367323,0.5164829,1077.2,1074.4,1.22857739]
[1759436367524,0.5164829,1077.1,1074.4,1.22857739]
[1759436367728,0.5164829,1077.0,1074.4,1.22857739]
[1759436368024,0.5164829,1076.9,1074.4,1.22857739]
[1759436368223,0.5164829,1076.8,1074.4,1.22857739]
[1759436368428,0.83058374,1077.4,1074.4,1.22857739]
[1759436368726,0.51637782,1077.3,1074.4,1.22857739]
[1759436368923,0.51637782,1077.2,1074.4,1.22857739]
[1759436369125,0.51637782,1077.1,1074.4,1.22857739]
[1759436369324,0.51637782,1077.0,1074.4,1.22857739]
[1759436369528,0.51637782,1076.9,1074.1,1.22857739]
[1759436369726,0.51637782,1076.8,1074.1,1.22857739]
[1759436370029,0.51637782,1076.7,1074.1,1.22857739]
[1759436370329,0.83058374,1077.5,1074.1,1.22857739]
[1759436370526,0.51639703,1077.4,1074.1,1.22857739]
[1759436370731,0.51639703,1077.3,1074.1,1.22857739]
[1759436370931,0.51639703,1077.2,1074.1,1.22857739]
[1759436371231,0.51639703,1077.1,1074.1,1.22857739]
[1759436371432,0.51639703,1077.0,1074.1,1.22857739]
[1759436371631,0.51639703,1076.9,1073.8,1.22857739]
[1759436371830,0.83058374,1077.5,1073.7,1.22857739]
[1759436371831,0.51639703,1076.8,1073.7,1.22857739]
[1759436372029,0.51639703,1076.7,1073.7,1.22857739]
[1759436372229,0.51639703,1076.6,1073.7,1.22857739]
[1759436372431,0.51639703,1076.5,1073.7,1.22857739]